[Event "Charlotte Open 2024"]
[Site "Charlotte"]
[Date "2024.01.14"]
[Round "3.12"]
[White "Joseph, Jonath"]
[Black "King, Alexander"]
[Result "1/2-1/2"]
[ECO "B22"]
[WhiteElo "2149"]
[BlackElo "2302"]
[Annotator "RC"]
[PlyCount "111"]
[EventDate "2024.01.05"]
[EventType "swiss"]
[EventCountry "USA"]
[SourceTitle "playchess.com"]
[Source "ChessBase"]
[SourceQuality "1"]
[TimeControl "6600+10"]

1. e4 {[%emt 0:04:27]} c5 {[%emt 0:00:12]} 2. Nf3 {[%emt 0:01:28]} e6 {[%emt 0:00:08]} 3. c3 {[%emt 0:00:07]} Nf6 {[%emt 0:01:29]} 4. e5 {[%emt 0:00:03]} Nd5 {[%emt 0:00:09]} 5. d4 {[%emt 0:00:03]} cxd4 {[%emt 0:00:26]} 6. cxd4 {[%emt 0:00:10]} d6 {[%emt 0:00:27]} 7. Bc4 {[%emt 0:00:04]} Nb6 {[%emt 0:00:32]} 8. Bd3 {[%emt 0:00:08]} Nc6 {[%emt 0:00:24]} 9. a3 {[%emt 0:00:26]} dxe5 {[%emt 0:01:18]} 10. dxe5 {[%emt 0:00:09]} Nd7 {[%emt 0:00:27]} 11. Bb5 {[%emt 0:10:51]} Qc7 {[%emt 0:01:47]} 12. Bf4 {[%emt 0:02:59]} a6 {[%emt 1:44:51]} 13. Bxc6 {[%emt 0:05:53]} Qxc6 {[%emt 0:00:00]} 14. Nc3 {[%emt 0:00:41]} b5 {[%emt 0:00:00]} 15. O-O {[%emt 0:02:15]} Bb7 {[%emt 0:00:00]} 16. Re1 {[%emt 0:00:39]} Nc5 {[%emt 0:00:00]} 17. Qe2 {[%emt 0:07:57]} g5 {[%emt 0:00:00]} 18. Be3 {[%emt 0:27:06]} Nb3 {[%emt 0:00:00]} 19. Rad1 {[%emt 0:04:12]} Be7 {[%emt 0:00:00]} 20. Qf1 {[%emt 0:43:52]} h6 {[%emt 0:00:00]} 21. Nd4 {[%emt 0:00:00]} Nxd4 {[%emt 0:00:00]} 22. Rxd4 {[%emt 0:00:00]} Rd8 {[%emt 0:00:00]} 23. Ne4 {[%emt 0:00:00]} Rxd4 {[%emt 0:00:00]} 24. Bxd4 {[%emt 0:00:00]} O-O {[%emt 0:00:00]} 25. f4 {[%emt 0:00:00]} g4 {[%emt 0:00:00]} 26. f5 {[%emt 0:01:00]} Rd8 {[%emt 0:00:22]} 27. f6 {[%emt 0:00:00]} Bf8 {[%emt 0:00:48]} 28. Bc3 {[%emt 0:00:00]} Qc4 {[%emt 0:01:06]} 29. Qxc4 {[%emt 0:00:00]} bxc4 {[%emt 0:00:01]} 30. Bb4 {[%emt 0:00:00]} Bxb4 {[%emt 0:00:25]} 31. axb4 {[%emt 0:00:00]} Bxe4 {[%emt 0:00:11]} 32. Rxe4 {[%emt 0:00:00]} Rd1+ {[%emt 0:00:13]} 33. Kf2 {[%emt 0:00:00]} Rd2+ {[%emt 0:00:04]} 34. Kg3 {[%emt 0:00:00]} h5 {[%emt 0:00:02]} 35. Rxc4 {[%emt 0:00:00]} Rxb2 {[%emt 0:00:18]} 36. Kh4 {[%emt 0:00:00]} Kh7 {[%emt 0:00:13]} 37. Kg5 {[%emt 0:00:00]} Rf2 {[%emt 0:00:15]} 38. Kxh5 {[%emt 0:00:00]} Rf5+ {[%emt 0:00:09]} 39. Kxg4 {[%emt 0:00:23]} Rxe5 {[%emt 0:00:01]} 40. h4 {[%emt 0:00:28]} Kg6 {[%emt 0:00:13]} 41. Rf4 {[%emt 0:00:04]} a5 {[%emt 0:00:16]} 42. bxa5 {[%emt 0:00:14]} Rxa5 {[%emt 0:00:00]} 43. g3 {[%emt 0:00:35]} e5 {[%emt 0:00:11]} 44. h5+ {[%emt 0:00:07]} Kh6 {[%emt 0:00:02]} 45. Re4 {[%emt 0:00:13]} Ra6 {[%emt 0:00:29]} 46. Kf5 {[%emt 0:00:17]} Ra3 {[%emt 0:00:10]} 47. g4 {[%emt 0:00:20]} Rf3+ {[%emt 0:00:08]} 48. Kxe5 {[%emt 0:00:02]} Kg5 {[%emt 0:00:02]} 49. Kd6 {[%emt 0:00:46]} Rxf6+ {[%emt 0:00:18]} 50. Ke7 {[%emt 0:00:09]} Rf3 {[%emt 0:00:10]} 51. Rb4 {[%emt 0:00:14]} f5 {[%emt 0:00:08]} 52. gxf5 {[%emt 0:00:09]} Rxf5 {[%emt 0:00:11]} 53. Ke6 {[%emt 0:00:06]} Rf8 {[%emt 0:00:11]} 54. Rb5+ {[%emt 0:00:05]} Kh6 {[%emt 0:00:04]} 55. Ke7 {[%emt 0:00:05]} Rf4 {[%emt 0:00:08]} 56. Ke6 {[%emt 0:00:23]} 1/2-1/2

[Event "Charlotte Open 2024"]
[Site "Charlotte"]
[Date "2024.01.14"]
[Round "3.13"]
[White "Kantor, Gergely"]
[Black "Yan, Benjamin"]
[Result "1-0"]
[ECO "D52"]
[WhiteElo "2531"]
[BlackElo "2025"]
[Annotator "TA"]
[PlyCount "51"]
[EventDate "2024.01.05"]
[EventType "swiss"]
[EventCountry "USA"]
[SourceTitle "playchess.com"]
[Source "ChessBase"]
[SourceQuality "1"]
[TimeControl "6600+10"]

{[%evp 13,51,32,36,8,8,6,6,4,11,14,71,54,152,140,153,163,219,199,229,224,239,225,248,252,261,254,284,271,274,230,495,491,810,764,800,794,1155,1149,1160,1132]} 1. d4 {[%emt 0:04:23]} d5 {[%emt 0:03:31]} 2. c4 {[%emt 0:00:05]} c6 {[%emt 0:00:04]} 3. Nf3 {[%emt 0:00:16]} Nf6 {[%emt 0:00:06]} 4. Nc3 {[%emt 0:00:49]} e6 {[%emt 0:00:20]} 5. Bg5 {[%emt 0:00:11]} Nbd7 {[%emt 0:00:16]} 6. e3 {[%emt 0:00:32]} Qa5 {[%emt 0:00:25]} 7. Nd2 {[%emt 0:00:19] 7.cxd5 is the fancy move.} Bb4 {[%emt 0:12:14]} 8. Rc1 {[%emt 0:00:34] D52: Queen's Gambit Declined: Cambridge Springs Variation.} Ne4 {[%emt 0:08:28]} 9. Ndxe4 {[%emt 0:03:35]} dxe4 {[%emt 0:00:07]} 10. Bh4 {[%emt 0:01:19] The position is equal.} Qxa2 {[%emt 0:13:41]} 11. Qc2 {[%emt 0:00:26]} ({Reject} 11. Qd2 Qb3 $15) 11... O-O {[%emt 0:07:26] [#]} (11... Nb6 $11) 12. Be7 $146 {[%emt 0:02:06]} (12. Be2 {simplifies} Bxc3+ 13. Qxc3 Qa6 14. b4) ({Predecessor:} 12. Be2 e5 13. O-O Qa5 14. Nxe4 exd4 15. exd4 Qf5 16. Bd3 Qh5 17. Bg3 Re8 18. c5 {0-1 Sarana,A (2654)-Ajay,K (2315) Titled Tuesday intern op 11th Aug blitz 2020 (4)}) 12... Qa5 {[%emt 0:05:19]} 13. Bxf8 $16 {[%emt 0:01:20]} Nxf8 {[%emt 0:00:06]} 14. Qxe4 {[%emt 0:00:52]} Bd7 {[%emt 0:02:06]} (14... e5 $142) 15. Be2 $18 {[%emt 0:01:02][%cal Bf1e2,Be2c4,Bc4f7][%mdl 32]} Re8 {[%emt 0:00:22]} 16. O-O {[%emt 0:00:40]} a6 {[%emt 0:05:29]} 17. f4 {[%emt 0:03:30]} Bd6 {[%emt 0:02:24]} 18. c5 {[%emt 0:00:23]} Bb8 {[%emt 0:00:37]} 19. Qc2 {[%emt 0:01:41]} f6 {[%emt 0:01:07]} 20. Bc4 {[%emt 0:00:28]} Kh8 {[%emt 0:00:20]} 21. Rf3 {[%emt 0:00:55]} e5 $2 {[%emt 0:01:03] [#]} (21... Re7 22. g4 Be8) 22. fxe5 {[%emt 0:00:52] White is clearly winning.} fxe5 {[%emt 0:00:23]} (22... Bxe5 $142 23. dxe5 Qxc5) 23. Rcf1 {[%emt 0:00:29]} Qd8 {[%emt 0:01:12]} 24. Qf2 {[%cal Rf3f8]} Ng6 {[%emt 0:00:10]} 25. Bf7 e4 {[%emt 0:00:10] [#]} 26. Nxe4 $1 {[%mdl 512] Black did not feel at home in the position after the opening.   Weighted Error Value: White=0.08 (flawless) /Black=0.45} 1-0

[Event "Charlotte Open 2024"]
[Site "Charlotte"]
[Date "2024.01.14"]
[Round "3.14"]
[White "Brady, Tyson"]
[Black "Aaron, Deepak"]
[Result "0-1"]
[ECO "B33"]
[WhiteElo "2063"]
[BlackElo "2296"]
[Annotator "RC"]
[PlyCount "82"]
[EventDate "2024.01.05"]
[EventType "swiss"]
[EventCountry "USA"]
[SourceTitle "playchess.com"]
[Source "ChessBase"]
[SourceQuality "1"]
[TimeControl "6600+10"]

1. e4 {[%emt 0:00:04]} c5 {[%emt 0:03:40]} 2. Nf3 {[%emt 0:00:04]} Nc6 {[%emt 0:00:05]} 3. d4 {[%emt 0:00:06]} cxd4 {[%emt 0:00:05]} 4. Nxd4 {[%emt 0:00:06]} Nf6 {[%emt 0:00:09]} 5. Nc3 {[%emt 0:00:03]} e5 {[%emt 0:00:12]} 6. Ndb5 {[%emt 0:00:03]} d6 {[%emt 0:00:14]} 7. Bg5 {[%emt 0:00:17]} a6 {[%emt 0:00:43]} 8. Na3 {[%emt 0:00:09]} b5 {[%emt 0:00:12]} 9. Nd5 {[%emt 0:00:06]} Be7 {[%emt 0:00:05]} 10. Bxf6 {[%emt 0:00:04]} Bxf6 {[%emt 0:00:06]} 11. c3 {[%emt 0:00:26]} Ne7 {[%emt 0:00:09]} 12. Nxf6+ {[%emt 0:01:08]} gxf6 {[%emt 0:00:08]} 13. Qf3 {[%emt 0:02:34]} f5 {[%emt 0:08:34]} 14. exf5 {[%emt 0:00:26]} Bxf5 {[%emt 0:00:12]} 15. Bd3 {[%emt 0:00:55]} Be6 {[%emt 0:02:32]} 16. Nc2 {[%emt 0:13:23]} f5 {[%emt 0:05:36]} 17. Qh3 {[%emt 0:03:45]} Qd7 {[%emt 0:02:15]} 18. f4 {[%emt 0:01:25]} Ng6 {[%emt 0:01:25]} 19. O-O {[%emt 0:05:41]} O-O {[%emt 0:05:22]} 20. fxe5 {[%emt 0:07:22]} dxe5 {[%emt 0:02:39]} 21. Rad1 {[%emt 0:00:41]} Rad8 {[%emt 0:07:32]} 22. Qe3 {[%emt 0:08:30]} Qc7 {[%emt 0:11:50]} 23. Nd4 {[%emt 0:05:27]} Bc8 {[%emt 0:05:42]} 24. Nb3 {[%emt 0:10:13]} Qg7 {[%emt 0:02:51]} 25. Nc5 {[%emt 0:03:35]} Rde8 {[%emt 0:05:32]} 26. Bc2 {[%emt 0:06:38]} Kh8 {[%emt 0:02:13]} 27. Kh1 {[%emt 0:02:11]} e4 {[%emt 0:06:56]} 28. Qd4 {[%emt 0:02:52]} Ne5 {[%emt 0:02:51]} 29. Rde1 {[%emt 0:08:39]} Rd8 {[%emt 0:02:02]} 30. Qf2 {[%emt 0:02:56]} Nc4 {[%emt 0:01:29]} 31. Bb3 {[%emt 0:05:27]} e3 {[%emt 0:06:47]} 32. Qf4 {[%emt 0:01:21]} Rd2 {[%emt 0:02:31]} 33. Rg1 {[%emt 0:00:18]} Rf2 {[%emt 0:06:00]} 34. Qh4 {[%emt 0:02:01]} Rg8 {[%emt 0:06:34]} 35. Qd4 {[%emt 0:04:17]} Qxd4 {[%emt 0:01:25]} 36. cxd4 {[%emt 0:00:06]} f4 {[%emt 0:00:19]} 37. d5 {[%emt 0:01:34]} Bf5 {[%emt 0:03:24]} 38. d6 {[%emt 0:00:12]} Rd8 {[%emt 0:00:55]} 39. g4 {[%emt 0:03:12]} Bg6 {[%emt 0:00:49]} 40. Bxc4 {[%emt 0:00:36]} bxc4 {[%emt 0:00:06]} 41. d7 {[%emt 0:00:17]} Rxd7 {[%emt 0:00:13]} 0-1

[Event "Charlotte Open 2024"]
[Site "Charlotte"]
[Date "2024.01.14"]
[Round "3.15"]
[White "Kogen, Jonathan"]
[Black "Ligotti, John J"]
[Result "1/2-1/2"]
[ECO "E05"]
[WhiteElo "2220"]
[BlackElo "1864"]
[Annotator "TA"]
[PlyCount "89"]
[EventDate "2024.01.05"]
[EventType "swiss"]
[EventCountry "USA"]
[SourceTitle "playchess.com"]
[Source "ChessBase"]
[SourceQuality "1"]
[TimeControl "6600+10"]

{[%evp 12,89,23,10,24,7,8,7,41,20,41,28,44,42,30,6,8,0,0,-9,0,0,0,0,0,0,3,10,30,29,30,33,32,37,31,31,35,23,41,35,20,22,23,29,31,35,43,0,43,0,24,7,7,0,0,0,0,0,0,0,0,0,0,0,0,0,0,0,0,0,0,0,0,0,0,0,0,0,0,0]} 1. d4 {[%emt 0:00:03]} Nf6 {[%emt 0:02:20]} 2. Nf3 {[%emt 0:00:12]} d5 {[%emt 0:00:34]} 3. g3 {[%emt 0:00:15]} e6 {[%emt 0:00:19]} 4. Bg2 {[%emt 0:00:12]} Be7 {[%emt 0:00:11]} 5. O-O {[%emt 0:00:12]} O-O {[%emt 0:00:25]} 6. c4 {[%emt 0:00:07]} dxc4 {[%emt 0:00:47]} 7. Qc2 {[%emt 0:00:21]} b6 {[%emt 0:00:24]} 8. Bg5 {[%emt 0:00:43][%cal Of1d1]} Nd5 {[%emt 0:00:24]} 9. Bxe7 {[%emt 0:00:30]} Qxe7 {[%emt 0:00:08]} 10. Rc1 {[%emt 0:00:49][%cal Ob1d2]} c5 {[%emt 0:11:50]} 11. dxc5 {[%emt 0:03:25]} Qxc5 {[%emt 0:03:22]} 12. Ng5 {[%emt 0:06:17][%csl Gg5][%cal Rc2h7] [#]} g6 {[%emt 0:01:59]} 13. Nd2 {[%emt 0:10:32][%mdl 1024] White has compensation.} (13. Qxc4 {simplifies} Qxc4 14. Rxc4 Ba6 15. Ra4) 13... Ba6 {[%emt 0:24:04]} (13... Qe7 {simplifies} 14. Nge4 Rd8 15. Nxc4 Bb7) 14. Qe4 {[%emt 0:07:29][%cal Og5e6] Hoping for Nxe6!} Qe7 {[%emt 0:06:06]} ({Much worse is} 14... c3 $6 15. bxc3 (15. Qh4 h5 $16) 15... Qe7 16. c4 Qxg5 17. cxd5 Qxd2 18. dxe6 $16) 15. Qh4 {[%emt 0:01:03][%csl Gg5][%cal Rh4h7]} f6 {[%emt 0:05:28]} 16. Ngf3 {[%emt 0:04:15]} Nd7 {[%emt 0:09:58]} 17. Nxc4 {[%emt 0:05:46]} Rac8 {[%emt 0:01:20]} 18. Ncd2 {[%emt 0:07:26]} Rxc1+ {[%emt 0:14:39]} ({Of course not} 18... Bxe2 19. Nd4 Rxc1+ 20. Rxc1 $14) 19. Rxc1 {[%emt 0:00:06]} Nc5 {[%emt 0:02:46]} 20. Nd4 {[%emt 0:06:27]} Bb7 {[%emt 0:01:13]} 21. Ne4 {[%emt 0:08:01]} Nxe4 {[%emt 0:01:54]} 22. Qxe4 {[%emt 0:01:00]} Rc8 {[%emt 0:01:43]} 23. Rxc8+ {[%emt 0:07:33]} (23. Qxe6+ $2 {loses.} Qxe6 24. Rd1 Qd7 $19) 23... Bxc8 {[%emt 0:00:08]} 24. Qc2 {[%emt 0:00:24]} Bb7 {[%emt 0:02:10]} 25. Qa4 {[%emt 0:03:25]} a6 {[%emt 0:04:33]} 26. e3 {[%emt 0:09:49]} b5 {[%emt 0:01:21]} 27. Qa5 {[%emt 0:01:26]} Qd6 {[%emt 0:00:31]} 28. Qd2 {[%emt 0:07:55]} Kf7 {[%emt 0:01:30]} 29. a3 {[%emt 0:02:58]} Ke7 {[%emt 0:03:11]} 30. b4 {[%emt 0:02:13]} Qc7 {[%emt 0:01:38]} 31. Nb3 {[%emt 0:02:33] Black must now prevent Nc5.} Nb6 {[%emt 0:01:01] The position is equal.} 32. Bxb7 {[%emt 0:00:49]} Nc4 {[%emt 0:00:47]} 33. Qd4 {[%emt 0:02:35]} Qxb7 $11 {[%emt 0:00:02][%mdl 4096] Endgame. KQN-KQN} 34. Qc5+ {[%emt 0:02:54]} Kf7 {[%emt 0:00:36]} 35. Na5 {[%emt 0:01:16]} Nxa5 {[%emt 0:00:26]} 36. bxa5 {[%emt 0:00:04] KQ-KQ} g5 {[%emt 0:01:13]} 37. Kf1 {[%emt 0:01:25]} Kg6 {[%emt 0:02:14]} 38. Ke2 {[%emt 0:01:11]} Qe4 {[%emt 0:01:10]} 39. Qb6 {[%emt 0:02:13]} Qc4+ {[%emt 0:00:56]} 40. Kd2 {[%emt 0:00:33]} Qa2+ {[%emt 0:00:08]} 41. Ke1 {[%emt 0:00:14]} Qb1+ {[%emt 0:00:51]} 42. Kd2 {[%emt 0:00:08]} Qb2+ {[%emt 0:00:08]} 43. Kd1 {[%emt 0:00:13]} Qb1+ {[%emt 0:00:22]} 44. Kd2 {[%emt 0:00:03]} Qb2+ {[%emt 0:00:15]} 45. Kd1 {[%emt 0:00:04] Weighted Error Value: White=0.05 (flawless) /Black=0.05 (flawless) .  Inaccurate:     	White=2     	Black=2      OK:         	White=17    	Black=14     Best:        	---       	Black=2} 1/2-1/2

[Event "Charlotte Open 2024"]
[Site "Charlotte"]
[Date "2024.01.14"]
[Round "3.16"]
[White "Peatman, Carter"]
[Black "Vigorito, David"]
[Result "1-0"]
[ECO "B07"]
[WhiteElo "2022"]
[BlackElo "2256"]
[Annotator "RC"]
[PlyCount "61"]
[EventDate "2024.01.05"]
[EventType "swiss"]
[EventCountry "USA"]
[SourceTitle "playchess.com"]
[Source "ChessBase"]
[SourceQuality "1"]
[TimeControl "6600+10"]

1. e4 {[%emt 0:07:59]} d6 {[%emt 0:02:44]} 2. d4 {[%emt 0:00:14]} Nf6 {[%emt 0:00:10]} 3. Nc3 {[%emt 0:00:07]} c6 {[%emt 0:00:52]} 4. f4 {[%emt 0:00:21]} Qa5 {[%emt 0:00:14]} 5. Bd3 {[%emt 0:00:28]} e5 {[%emt 0:00:13]} 6. dxe5 {[%emt 0:05:08]} dxe5 {[%emt 0:01:04]} 7. Nf3 {[%emt 0:00:08]} Bg4 {[%emt 0:04:01]} 8. f5 {[%emt 0:14:43]} Nbd7 {[%emt 0:04:49]} 9. Bd2 {[%emt 0:01:06]} Qc7 {[%emt 0:00:56]} 10. h3 {[%emt 0:04:03]} Bxf3 {[%emt 0:00:14]} 11. Qxf3 {[%emt 0:00:52]} h5 {[%emt 0:02:06]} 12. g3 {[%emt 0:08:42]} b5 {[%emt 0:18:36]} 13. O-O-O {[%emt 0:07:43]} Nc5 {[%emt 0:02:12]} 14. Ne2 {[%emt 0:05:49]} a5 {[%emt 0:03:36]} 15. g4 {[%emt 0:03:54]} h4 {[%emt 0:05:04]} 16. g5 {[%emt 0:03:11]} Nfd7 {[%emt 0:00:50]} 17. Kb1 {[%emt 0:00:43]} b4 {[%emt 0:04:43]} 18. g6 {[%emt 0:00:57]} f6 {[%emt 0:03:09]} 19. Bc4 {[%emt 0:00:23]} Bd6 {[%emt 0:01:10]} 20. Nc1 {[%emt 0:02:19]} Ke7 {[%emt 0:00:40]} 21. Nd3 {[%emt 0:04:50]} Rab8 {[%emt 0:05:50]} 22. Be3 {[%emt 0:04:41]} Na4 {[%emt 0:03:51]} 23. Nc1 {[%emt 0:13:33]} Bc5 {[%emt 0:11:53]} 24. Nb3 {[%emt 0:11:52]} Bb6 {[%emt 0:04:22]} 25. Be6 {[%emt 0:02:44]} Nf8 {[%emt 0:02:04]} 26. Bxb6 {[%emt 0:01:57]} Rxb6 {[%emt 0:04:31]} 27. Qd3 {[%emt 0:01:32]} Rb8 {[%emt 0:03:34]} 28. Qc4 {[%emt 0:00:41]} c5 {[%emt 0:04:27]} 29. Bg8 {[%emt 0:00:22]} Ke8 {[%emt 0:00:18]} 30. Nxa5 {[%emt 0:00:29]} Nb6 {[%emt 0:00:41]} 31. Qf7+ {[%emt 0:00:36]} 1-0

[Event "Charlotte Open 2024"]
[Site "Charlotte"]
[Date "2024.01.14"]
[Round "3.17"]
[White "Fang, Thomas"]
[Black "Prabhu, Naveen"]
[Result "0-1"]
[ECO "B12"]
[WhiteElo "1856"]
[BlackElo "2103"]
[Annotator "TA"]
[PlyCount "86"]
[EventDate "2024.01.05"]
[EventType "swiss"]
[EventCountry "USA"]
[SourceTitle "playchess.com"]
[Source "ChessBase"]
[SourceQuality "1"]
[TimeControl "6600+10"]

{[%evp 9,86,10,12,6,9,11,14,-43,-41,-27,-33,-30,-31,-44,-22,-32,-34,-40,-42,-59,-26,-27,0,0,0,-40,-41,-41,-45,-53,-56,-51,-23,-71,-39,-48,-47,-56,-43,-80,-69,-75,-72,-85,-79,-102,-105,-115,-93,-101,-122,-230,-146,-337,-108,-112,-54,-106,-104,-119,-118,-127,-66,-156,-162,-146,-147,-164,-152,-204,-207,-347,-220,-751,-740,-29989,-29990,-29990,-29991]} 1. e4 {[%emt 0:00:06]} c6 {[%emt 0:08:04]} 2. d4 {[%emt 0:00:12]} d5 {[%emt 0:00:04]} 3. e5 {[%emt 0:00:11]} c5 {[%emt 0:00:06]} 4. c3 {[%emt 0:01:45]} Nc6 {[%emt 0:00:25]} 5. Be2 {[%emt 0:00:28]} cxd4 {[%emt 0:01:03]} 6. cxd4 {[%emt 0:00:09]} Bf5 {[%emt 0:00:47]} 7. Nc3 {[%emt 0:02:36]} e6 {[%emt 0:01:39]} 8. g4 {[%emt 0:00:20]} (8. Nf3 $11) 8... Bg6 {[%emt 0:07:39]} 9. h4 {[%emt 0:00:11] [#] Und h5 würde nun gewinnen.} h5 $1 {[%emt 0:05:43]} 10. gxh5 {[%emt 0:04:04]} Bf5 {[%emt 0:00:19]} 11. Nf3 {[%emt 0:01:31]} Bg4 {[%emt 0:15:00]} 12. Ng5 {[%emt 0:05:45]} Bxe2 {[%emt 0:00:07]} 13. Nxe2 {[%emt 0:00:07]} Rxh5 {[%emt 0:02:05]} 14. Be3 {[%emt 0:00:40]} Bb4+ {[%emt 0:07:26]} 15. Kf1 {[%emt 0:00:32]} Be7 {[%emt 0:02:13]} 16. Nf4 {[%emt 0:10:54]} Rh6 $1 {[%emt 0:03:56]} 17. Nf3 {[%emt 0:01:08]} Rh8 {[%emt 0:01:16][%cal Og8h6]} 18. Rg1 {[%emt 0:04:53]} Bf8 {[%emt 0:03:21]} 19. Rc1 {[%emt 0:03:36]} Nh6 {[%emt 0:02:33]} 20. h5 {[%emt 0:03:31]} Nf5 {[%emt 0:02:34]} 21. a3 {[%emt 0:00:12]} (21. Rg5 $11) 21... Qb6 {[%emt 0:01:44]} 22. Qd3 {[%emt 0:01:34][%cal Of4d5]} O-O-O {[%emt 0:01:27]} 23. b4 {[%emt 0:00:21] Ng5 ist eine echte Drohung.} Kb8 {[%emt 0:00:47]} 24. Ng5 {[%emt 0:01:13]} Rd7 {[%emt 0:02:20][%cal Rc6d4]} 25. Rd1 {[%emt 0:03:01]} a6 {[%emt 0:03:50]} 26. Rd2 {[%emt 0:00:29]} Na7 {[%emt 0:02:15]} 27. Kg2 {[%emt 0:00:54]} Qd8 {[%emt 0:01:51]} 28. Kf3 {[%emt 0:01:35]} Qe8 {[%emt 0:00:26]} 29. Rc2 {[%emt 0:01:59]} Be7 {[%emt 0:00:26]} 30. Bd2 {[%emt 0:05:39]} (30. Ke2 $17 {ist eine bessere Verteidigung.}) 30... Rd8 {[%emt 0:01:45]} 31. Ngh3 $2 {[%emt 0:01:22]} (31. Ke2 $17 {war einen Versuch wert.}) 31... f6 $2 {[%emt 0:02:23]} (31... Qa4 $19 {[%cal Oa4c2] Weiss muss nun ...Qxc2! beachten.} 32. Be3 Nb5) 32. Kg2 $17 {[%emt 0:05:38]} Qd7 {[%emt 0:07:09]} (32... Nb5 $17 33. Nxe6 Qxh5 34. Nxd8 Nh4+ (34... Bxd8 35. Nf4 $15) 35. Kh1 Bxd8 (35... Rxd8 36. Nf4 $11) (35... Nf3 36. Rg3 $16)) 33. Re1 {[%emt 0:04:39]} (33. Rgc1 $15) 33... fxe5 {[%emt 0:01:20]} 34. dxe5 {[%emt 0:00:07] [#]} Rc8 $1 {[%emt 0:00:44]} 35. Rxc8+ {[%emt 0:00:17]} Rxc8 {[%emt 0:00:25]} ({Vorzuziehen ist} 35... Nxc8 $17 36. Qe2 Nh4+ 37. Kh2 Na7) 36. Ng6 {[%emt 0:00:51] [#]} (36. Rc1 $1 $15) 36... Rc4 $1 {[%emt 0:02:07]} 37. Nhf4 {[%emt 0:00:33]} Rd4 {[%emt 0:04:37]} 38. Qc2 {[%emt 0:02:29]} Nb5 {[%emt 0:00:14]} 39. Bc1 {[%emt 0:01:46]} (39. Ne2 $17 Re4 (39... Nxa3 40. Qxf5 Rxd2 41. Qf7 $11) 40. Qd3) 39... Rc4 $19 {[%emt 0:00:12]} 40. Qb2 {[%emt 0:04:24]} (40. Qd3 $142) 40... Qc6 {[%emt 0:00:08]} 41. Kf1 $2 {[%emt 0:13:21]} (41. a4 d4+ (41... Rxb4 $2 {geht unter.} 42. axb5 Qd7 43. Qa2 $18) 42. Kg1) 41... d4 {[%emt 0:00:19] Droht ...Qh1+ und aus.} 42. Qb1 {[%emt 0:01:27]} Qh1+ {[%emt 0:01:07]} 43. Ke2 {[%emt 0:00:09]} Nc3+ {[%emt 0:00:07] Gewichteter Fehlerwert: Weiß=0.59/Schwarz=0.25 (präzise) .  Verlustzug:     	Weiß=1     	---        Gewinn verpasst:   	---       	Schwarz=1     Fehler:       	Weiß=8     	Schwarz=2     Ungenau:       	Weiß=3     	Schwarz=6     OK:         	Weiß=9     	Schwarz=14    Bester:       	Weiß=2     	---        Stark:        	---       	Schwarz=3     Brilliant:      	---       	Schwarz=1} 0-1

[Event "Charlotte Open 2024"]
[Site "Charlotte"]
[Date "2024.01.14"]
[Round "4.1"]
[White "Chasin, Nico"]
[Black "Cruz, Cristhian"]
[Result "1/2-1/2"]
[ECO "E19"]
[WhiteElo "2437"]
[BlackElo "2498"]
[Annotator "RC"]
[PlyCount "20"]
[EventDate "2024.01.05"]
[EventType "swiss"]
[EventCountry "USA"]
[SourceTitle "playchess.com"]
[Source "ChessBase"]
[SourceQuality "1"]
[TimeControl "6600+10"]

1. d4 {[%emt 0:11:07]} Nf6 {[%emt 0:00:11]} 2. c4 {[%emt 0:00:06]} e6 {[%emt 0:00:08]} 3. Nf3 {[%emt 0:00:04]} b6 {[%emt 0:00:12]} 4. g3 {[%emt 0:00:07]} Bb7 {[%emt 0:00:11]} 5. Bg2 {[%emt 0:00:05]} Be7 {[%emt 0:00:08]} 6. O-O {[%emt 0:00:09]} O-O {[%emt 0:00:10]} 7. Nc3 {[%emt 0:00:05]} Ne4 {[%emt 0:00:10]} 8. Qc2 {[%emt 0:00:25]} Nxc3 {[%emt 0:00:15]} 9. Qxc3 {[%emt 0:00:07]} d6 {[%emt 0:00:37]} 10. b3 {[%emt 0:00:10]} Nd7 {[%emt 0:00:27]} 1/2-1/2

[Event "Charlotte Open 2024"]
[Site "Charlotte"]
[Date "2024.01.15"]
[Round "4.2"]
[White "Zhou, Jianchao"]
[Black "Kraai, Jesse"]
[Result "1/2-1/2"]
[ECO "A13"]
[WhiteElo "2562"]
[BlackElo "2375"]
[Annotator "RC"]
[PlyCount "74"]
[EventDate "2024.01.05"]
[EventType "swiss"]
[EventCountry "USA"]
[SourceTitle "playchess.com"]
[Source "ChessBase"]
[SourceQuality "1"]
[TimeControl "6600+10"]

1. Nf3 {[%emt 0:00:04]} Nf6 {[%emt 0:00:11]} 2. c4 {[%emt 0:00:05]} e6 {[%emt 0:00:18]} 3. Nc3 {[%emt 0:00:06]} d5 {[%emt 0:00:08]} 4. e3 {[%emt 0:00:07]} Be7 {[%emt 0:03:34]} 5. b3 {[%emt 0:00:38]} O-O {[%emt 0:00:24]} 6. Bb2 {[%emt 0:00:06]} c5 {[%emt 0:01:10]} 7. cxd5 {[%emt 0:00:17]} exd5 {[%emt 0:00:09]} 8. d4 {[%emt 0:00:12]} b6 {[%emt 0:01:31]} 9. Be2 {[%emt 0:00:53]} Bb7 {[%emt 0:00:22]} 10. O-O {[%emt 0:00:25]} Nbd7 {[%emt 0:01:13]} 11. Bd3 {[%emt 0:08:36]} Re8 {[%emt 0:06:28]} 12. Qe2 {[%emt 0:02:08]} a6 {[%emt 0:06:16]} 13. Rfd1 {[%emt 0:01:53]} Bd6 {[%emt 0:08:26]} 14. Rac1 {[%emt 0:05:05]} Qe7 {[%emt 0:01:00]} 15. Bf5 {[%emt 0:04:07]} Rad8 {[%emt 0:10:51]} 16. Bxd7 {[%emt 0:06:41]} Nxd7 {[%emt 0:00:55]} 17. dxc5 {[%emt 0:01:10]} Nxc5 {[%emt 0:00:09]} 18. Kh1 {[%emt 0:07:15]} Qe6 {[%emt 0:04:28]} 19. Na4 {[%emt 0:10:43]} Qh6 {[%emt 0:10:46]} 20. Bd4 {[%emt 0:18:28]} Ne4 {[%emt 0:19:58]} 21. Kg1 {[%emt 0:12:49]} b5 {[%emt 0:10:54]} 22. Nc3 {[%emt 0:04:10]} b4 {[%emt 0:03:55]} 23. Nxe4 {[%emt 0:04:22]} dxe4 {[%emt 0:00:46]} 24. Ne5 {[%emt 0:00:04]} Rc8 {[%emt 0:08:52]} 25. Qg4 {[%emt 0:09:36]} Rxc1 {[%emt 0:06:21]} 26. Rxc1 {[%emt 0:00:03]} Qe6 {[%emt 0:00:04]} 27. Qxe6 {[%emt 0:01:00]} Rxe6 {[%emt 0:00:55]} 28. Nc4 {[%emt 0:00:10]} f6 {[%emt 0:01:41]} 29. Kf1 {[%emt 0:02:59]} Bc6 {[%emt 0:00:32]} 30. Ke1 {[%emt 0:05:30]} Bf8 {[%emt 0:00:01]} 31. Na5 {[%emt 0:00:33]} Bb5 {[%emt 0:00:24]} 32. Bc5 {[%emt 0:00:30]} Re5 {[%emt 0:00:19]} 33. Bxf8 {[%emt 0:02:36]} Kxf8 {[%emt 0:00:01]} 34. Rc8+ {[%emt 0:00:27]} Kf7 {[%emt 0:00:07]} 35. Rc7+ {[%emt 0:00:51]} Kg6 {[%emt 0:00:02]} 36. Nc6 {[%emt 0:00:51]} Bxc6 {[%emt 0:00:13]} 37. Rxc6 {[%emt 0:00:03]} Ra5 {[%emt 0:00:04]} 1/2-1/2